Cogmind - Beta 16 @@@ ROGUE MODE // 2025.10.25 @ 13:21:35 Player: aliser Result: Destroyed by G-67 Veteran with Field Laser Performance ------------- Evolutions (7) 3500 Regions Visited (22) 4400 Robots Destroyed (157) 785 Value Destroyed (7353) 7353 Prototype IDs (38) 760 Alien Tech Used (8) 1600 Bonus (3531) 3531 TOTAL SCORE: 21929 Bonus ------- High Alert Combat Kills 171 Follower Combat Kills 1351 Entered DSFs 500 Acquired ECA 300 Met Zhirov 300 Scanned by Researcher 1000 Pursued by Intercept 500 Friendly Fire -591 Cogmind --------- Core Integrity 0/1300 Matter 265/300 Energy 200/200 System Corruption 63% Temperature Hot (207) Movement Hovering (110) Ox1 Location -3/Section 7 Parts ------- > --- POWER (3) -------- Micro Antimatter Reactor Micro Antimatter Reactor > --- PROPULSION (7) --- Cooled Gravmag System Improved Antigrav System Improved Antigrav System Combat Antigrav System Combat Antigrav System > --- UTILITY (9) ------ Experimental Cooling System Machine Analyzer Improved Targeting Computer Advanced Target Analyzer Advanced Target Analyzer Stasis Canceller Heavy Regenerative Plating Core Physics Calibrator > --- WEAPON (3) ------- Heavy Tesla Rifle Compact HERF Cannon Hardcell Cannon > --- INVENTORY (5) ---- Encrypted Comm Array Core Cannon Advanced Remote Datajack Peak State ------------ > --- POWER ------------ Micro Antimatter Reactor Micro Antimatter Reactor Graviton Reactor > --- PROPULSION ------- Cooled Gravmag System Improved Antigrav System Combat Antigrav System Combat Antigrav System Antigrav Array > --- UTILITY ---------- Experimental Cooling System Machine Analyzer Improved Targeting Computer Advanced Target Analyzer Advanced Target Analyzer Jamming Amplifier Heavy Regenerative Plating Core Physics Calibrator > --- WEAPON ----------- Compact HERF Cannon Sigix Broadsword > --- INVENTORY -------- Encrypted Comm Array Stasis Canceller Core Cannon Advanced Remote Datajack [Rating: 173] Favorites ----------- Power Improved Ion Engine Engine Improved Ion Engine Power Core Fission Core Reactor Fusion Reactor Propulsion Armored Treads Treads Armored Treads Leg Improved Titanium Leg Wheel Wheel Hover Unit Cooled Gravmag System Flight Unit Cesium-ion Thruster Utility Machine Analyzer Device Improved Heat Sink Storage Medium Storage Unit Processor Machine Analyzer Hackware Advanced System Shield Protection Hardened Medium Armor Plating Artifact Core Physics Calibrator Weapon Plasma Rifle Energy Gun Plasma Rifle Energy Cannon Improved Matter Neutralizer Ballistic Gun Railgun Ballistic Cannon Linear Accelerator Launcher Mini Grenade Launcher Special Weapon Welding Torch Slashing Weapon Katana Build | -11 -10 -9 -9 -8 -7 -7 -6 -6 -6 -6 -6 -5 -5 -5 -4 -4 -4 -4 -3 -3 -3 -3 ------- Run | Yrd Mat Mat Min Mat Fac DSF Fac Ext Cet Arc Hub Fac Upp Upp Fac Upp Upp Zhi Pro Res Qua Sec Slots Evolved 14 | . . 2 . 2 2 . 2 . . . . 2 . . 2 . . . . 2 . . Power 2 | . . . . . . . 1 . . . . . . . . . . . . 1 . . Propulsion 4 | . . . . 1 1 . 1 . . . . 1 . . . . . . . . . . Utility 7 | . . 2 . . 1 . . . . . . 1 . . 2 . . . . 1 . . Weapon 1 | . . . . 1 . . . . . . . . . . . . . . . . . . Parts Attached 230 | 6 1 5 1 20 5 8 12 20 5 2 12 7 9 . 19 3 6 9 1 27 20 32 Power 29 | 1 . . . 2 . . 4 5 1 . . 2 . . 1 . . 2 . 2 5 4 Engine 10 | 1 . . . 2 . . 3 3 . . . 1 . . . . . . . . . . Core 7 | . . . . . . . 1 2 . . . 1 . . 1 . . 1 . . 1 . Reactor 12 | . . . . . . . . . 1 . . . . . . . . 1 . 2 4 4 Propulsion 58 | 2 . . . 4 . 4 2 7 1 1 7 3 1 . 5 2 1 3 1 6 1 7 Treads 20 | 2 . . . 1 . 4 2 7 1 1 . . . . . . . . . 1 . 1 Leg 7 | . . . . 3 . . . . . . 1 . . . . 1 1 . . 1 . . Wheel 2 | . . . . . . . . . . . 2 . . . . . . . . . . . Hover 20 | . . . . . . . . . . . . 2 . . 3 . . 3 1 4 1 6 Flight 9 | . . . . . . . . . . . 4 1 1 . 2 1 . . . . . . Utility 98 | 1 1 2 1 5 3 3 4 4 3 . 4 2 5 . 12 . 4 4 . 11 11 18 Device 48 | . . . 1 2 1 1 3 2 2 . 1 1 3 . 7 . 2 . . 6 6 10 Storage 9 | 1 . 1 . 1 . . . . . . 1 . . . 1 . . 2 . 1 1 . Processor 21 | . 1 . . 1 2 . . . . . . 1 1 . 2 . 2 . . 2 3 6 Hackware 2 | . . . . . . . . . . . . . . . 1 . . 1 . . . . Protection 17 | . . 1 . 1 . 2 1 2 1 . 2 . 1 . 1 . . 1 . 2 1 1 Artifact 1 | . . . . . . . . . . . . . . . . . . . . . . 1 Weapon 45 | 2 . 3 . 9 2 1 2 4 . 1 1 . 3 . 1 1 1 . . 8 3 3 Energy Gun 21 | 1 . 3 . 6 1 1 1 1 . . 1 . . . . . 1 . . 4 . 1 Energy Cannon 6 | . . . . . . . 1 . . . . . 1 . . . . . . 1 2 1 Ballistic Gun 4 | 1 . . . . 1 . . . . 1 . . . . . . . . . 1 . . Ballistic Cannon 4 | . . . . . . . . . . . . . 1 . . 1 . . . 1 . 1 Launcher 5 | . . . . 2 . . . 1 . . . . . . 1 . . . . 1 . . Special Weapon 2 | . . . . . . . . 1 . . . . 1 . . . . . . . . . Impact Weapon . | . . . . . . . . . . . . . . . . . . . . . . . Slashing Weapon 3 | . . . . 1 . . . 1 . . . . . . . . . . . . 1 . Piercing Weapon . | . . . . . . . . . . . . . . . . . . . . . . . Special Melee Weapon . | . . . . . . . . . . . . . . . . . . . . . . . Unidentified Prototypes 32 | . . 1 . 2 2 . . 1 2 . . . 1 . 2 . . 7 . 4 4 6 Corrupted Parts 5 | . . . 1 . . . . 3 . . 1 . . . . . . . . . . . System Corruption 14 | . . . 1 . . . . 10 . . 3 . . . . . . . . . . . Parts Lost 92 | . . . . 6 . 2 . 5 1 5 14 3 2 1 5 6 5 . 2 1 19 15 Power 14 | . . . . . . 1 . 1 . 1 1 . . . 2 . . . 1 . 3 4 Propulsion 24 | . . . . . . . . 2 1 1 5 1 2 . 2 2 2 . 1 1 1 3 Utility 39 | . . . . 3 . . . 1 . 1 4 1 . 1 . 4 3 . . . 14 7 Weapon 15 | . . . . 3 . 1 . 1 . 2 4 1 . . 1 . . . . . 1 1 Highest Loss Streak 13 | . . . . 4 . 2 . 3 1 3 13 3 1 1 5 6 4 . 1 1 5 7 To Critical Strikes 3 | . . . . . . . . . . 1 1 . . . . 1 . . . . . . Average Backups 6 | 1 1 6 10 9 7 9 9 9 10 9 8 4 4 5 4 3 4 5 3 4 4 3 Power . | . 1 1 1 . . . . . . . . . . . . . 1 . . . . . Propulsion . | . . . 1 1 1 1 1 . . . . . . . . . . 1 . . . . Utility 4 | . . 1 1 5 3 4 6 6 7 7 7 3 3 3 3 2 2 2 2 3 2 . Weapon 1 | . . 2 6 2 2 2 2 2 3 2 1 . 1 2 . . . . . . 1 1 Tool/Special . | . . . . . . . . . . . . . . . . . . . . . . . Unused Backups 17 | . . . 1 1 . 1 3 . . . 3 1 1 . 2 . 1 . . 1 . 2 Power 1 | . . . . . . . . . . . . . . . . . 1 . . . . . Propulsion 2 | . . . . . . 1 . . . . . . . . 1 . . . . . . . Utility 8 | . . . 1 . . . . . . . 3 1 1 . 1 . . . . 1 . . Weapon 1 | . . . . . . . 1 . . . . . . . . . . . . . . . Tool/Special 5 | . . . . 1 . . 2 . . . . . . . . . . . . . . 2 Average Slot Usage (%) 84 | . 94 84 86 98 90 94 96 98 93 86 72 62 67 61 72 54 44 38 68 86 77 75 Engine 4 | . 14 11 6 8 7 3 6 9 7 6 4 3 4 . . . . . . . . . Core 1 | . . . . . . . 2 2 . . . . 5 5 6 . . 1 2 . 1 . Reactor 2 | . . . . . . . . . 4 2 . . . . . . . 2 5 8 8 11 Treads 12 | . 28 22 22 . . 23 32 32 26 25 16 . . . . . . . . 2 . . Leg 3 | . . . . 26 23 5 . . . . . . . . . . 1 . 4 1 . . Hover 6 | . . . . . . . . . . . . 6 4 5 7 . . 7 15 20 21 21 Flight 2 | . . . . . . . . . . . 2 22 24 16 16 17 9 . . . . . Device 9 | . . . 4 7 7 11 12 13 13 7 8 5 10 11 14 7 4 . . 10 13 11 Storage 6 | . 14 16 17 12 7 7 6 6 6 6 6 1 . . . 5 4 4 10 4 4 3 Processor 10 | . 8 11 11 11 22 8 6 6 6 6 6 11 11 16 15 15 23 20 20 11 8 14 Protection 5 | . . 1 11 5 . 9 6 5 6 11 7 3 1 5 1 3 . . 5 10 5 . Energy Gun 7 | . 14 16 13 22 13 14 7 11 13 2 . . . . . . 3 . . 3 . 2 Energy Cannon 2 | . . . . . . . 5 1 . . . . 1 . 4 . . . . 3 8 1 Launcher 1 | . . . . 2 . 4 . 3 5 6 4 . . . . . . . . . . . Slashing Weapon 1 | . . . . 1 6 2 5 2 . 4 5 3 . . . . . . . . . 3 Peak Build Rating 173 | 6 7 14 14 34 38 43 53 58 79 77 69 48 74 58 95 67 61 83 85 144 163 173 Average Rating 72 | 3 6 10 12 30 37 38 47 52 69 70 50 41 60 54 77 54 45 50 83 129 142 148 On Entrance 47 | . 6 7 14 9 22 38 37 53 52 76 69 32 43 58 53 55 29 22 76 80 143 116 Avg Prop Armor Cover (%) 7 | . . . . . . 11 13 . . . 5 9 4 7 7 . 14 . 10 8 1 3 Naked Turns . | . . . . . . . . . . . . . . . . . . . . . . . Heaviest Build 100 | 13 13 27 27 37 27 36 52 63 67 71 51 26 36 19 32 21 12 29 30 97 100 81 Greatest Support 140 | 40 40 40 40 60 60 80 110 123 140 140 140 28 36 23 37 31 12 33 54 89 93 97 Greatest Overweight (x) 11 | . . . . 1 . . 1 . . . 11 1 . . . . . . . 1 1 1 Average Overweight (x) . | . . . . . . . . . . . . . . . . . . . . . . . Largest Inventory Capacity 10 | 8 8 10 10 10 10 10 10 10 10 10 10 5 5 5 5 5 5 5 5 5 5 5 Average Capacity 7 | 7 8 9 10 10 10 10 10 10 10 10 8 5 5 5 5 5 5 5 5 5 5 5 Most Carried 10 | 4 3 10 10 10 9 10 10 10 10 10 10 5 5 5 5 5 5 5 4 5 5 5 Average Carried 7 | 1 1 6 10 9 7 9 9 9 9 9 8 4 4 5 4 3 4 4 3 4 4 4 Final Capacity 10 | 8 8 10 10 10 10 10 10 10 10 10 5 5 5 5 5 5 5 5 5 5 5 5 Final Carried 10 | 1 3 10 10 10 8 10 10 10 10 10 5 5 5 5 5 5 5 5 3 5 4 4 Class Distribution -------------------- 30% | Mutant 18% | Scavenger-Mutant 10% | Scavenger-Tank 8% | Gunner 6% | Sprinter 5% | Tank 5% | Scout 3% | Scientist-Scout Dominant Class ---------------- Mutant | -10/Materials Mutant | -9/Materials Mutant | -9/Mines Gunner | -8/Materials Assassin | -7/Factory Mutant | -7/DSF Mutant | -6/Factory Scavenger-Tank | -6/Extension Scavenger-Tank | -6/Cetus Scavenger-Mutant | -6/Archives Scavenger-Mutant | -6/Hub_04(d) Mutant | -5/Factory Sprinter | -5/Upper Caves Sprinter | -5/Upper Caves Sprinter | -4/Factory Mutant | -4/Upper Caves Mutant | -4/Upper Caves Mutant | -4/Zhirov Mutant | -3/Proximity Caves Scout | -3/Research Scientist-Scout | -3/Quarantine Scavenger-Mutant | -3/Section 7 Resources | -11 -10 -9 -9 -8 -7 -7 -6 -6 -6 -6 -6 -5 -5 -5 -4 -4 -4 -4 -3 -3 -3 -3 ----------- Run | Yrd Mat Mat Min Mat Fac DSF Fac Ext Cet Arc Hub Fac Upp Upp Fac Upp Upp Zhi Pro Res Qua Sec Matter Collected 5904 | 99 226 60 10 320 . 128 563 880 112 213 37 127 235 . 460 538 91 . 10 959 491 345 Remotely . | . . . . . . . . . . . . . . . . . . . . . . . Salvage Created 6710 | . 78 550 95 775 . 353 540 1046 188 197 447 127 23 . 39 . . . . 531 807 914 Parts 319 | . 4 39 11 52 . 22 28 33 6 4 27 3 . . 3 . . . . 12 44 31 Haulers Intercepted 5 | . 1 1 . 2 . . . 1 . . . . . . . . . . . . . . Recyclers Shooed 2 | . . 1 . . . . . . . . . . . . . . . . . 1 . . Parts Field Recycled 4 | . . . . . . . . . . . . 4 . . . . . . . . . . Retrieved Matter 5 | . . . . . . . . . . . . 5 . . . . . . . . . . Parts Self-Destructed . | . . . . . . . . . . . . . . . . . . . . . . . Prevented . | . . . . . . . . . . . . . . . . . . . . . . . Parts Restored . | . . . . . . . . . . . . . . . . . . . . . . . Kills | -11 -10 -9 -9 -8 -7 -7 -6 -6 -6 -6 -6 -5 -5 -5 -4 -4 -4 -4 -3 -3 -3 -3 ------- Run | Yrd Mat Mat Min Mat Fac DSF Fac Ext Cet Arc Hub Fac Upp Upp Fac Upp Upp Zhi Pro Res Qua Sec Combat Hostiles Destroyed 120 | . 1 11 4 15 . 10 8 20 4 3 10 . 1 . 3 . . . . 4 15 11 Melee 7 | . . . . . . . . . . 1 . . . . . . . . . . . 6 Guns 46 | . 1 10 3 11 . 3 3 7 4 1 3 . . . . . . . . . . . Cannons 23 | . . . . . . . 1 1 . . . . 1 . . . . . . 2 15 3 AOE 39 | . . 1 1 4 . 7 3 11 . 1 6 . . . 3 . . . . . . 2 Classes Destroyed 18 | . 3 2 1 5 . 2 2 1 . . . . . . . . . . . . 1 1 Worker 5 | . 1 1 . . . . . . . . 3 . . . . . . . . . . . Builder 5 | . . . . 1 . . 1 1 . . 2 . . . . . . . . . . . Tunneler 3 | . . . 1 . . . 1 . . . . . . . . . . . . 1 . . Hauler 5 | . 1 1 . 2 . . . 1 . . . . . . . . . . . . . . Recycler 5 | . . . . . . . 1 . . . . 1 . . . . . . . 1 1 1 Operator 2 | . . . . 1 . . . . . . . . . . . . . . . . . 1 Watcher 9 | . . . . 3 . . . 1 . . . . . . 1 . . . . 2 1 1 Swarmer 18 | . 1 . 4 4 . 4 . . . . 3 . . . . . . . . . . 2 Grunt 50 | . . 10 . 7 . 2 3 14 4 . 4 . . . . . . . . . 4 2 Duelist 3 | . . 1 . . . . . 1 . . . . . . . . . . . . 1 . Researcher 1 | . . . . . . . . . . . . . . . . . . . . . 1 . Sentry 16 | . . . . 3 . . 2 3 . 3 . . 1 . . . . . . 3 . 1 Demolisher 1 | . . . . . . . . 1 . . . . . . . . . . . . . . Specialist 5 | . . . . . . 3 . . . . 2 . . . . . . . . . . . Hunter 5 | . . . . 1 . . . . . . 1 . . . . . . . . 1 2 . Programmer 19 | . . . . . . . 3 1 . . . . . . 3 . . . . . 8 4 Heavy 1 | . . . . . . 1 . . . . . . . . . . . . . . . . Behemoth 1 | . . . . . . . . . . . . . . . . . . . . . . 1 S7 Guard 1 | . . . . . . . . . . . . . . . . . . . . . . 1 Guerrilla 2 | . . . . . . . . 1 . 1 . . . . . . . . . . . . Best Kill Streak 11 | . 1 5 4 5 . 9 4 5 4 1 11 1 1 . 3 . . . . 2 5 3 Combat Bots Only 9 | . 1 5 4 5 . 9 3 5 4 1 7 . 1 . 3 . . . . 1 4 2 Max Kills in Single Turn 4 | . 1 1 2 4 . 4 2 4 1 1 4 1 1 . 2 . . . . 1 3 2 Gunslinging . | . . . . . . . . . . . . . . . . . . . . . . . Exploded 4 | . . 1 1 4 . 4 2 3 . 1 2 . . . 2 . . . . . . 2 Melee 1 | . . . . . . . . . . 1 . . . . . . . . . . . 1 Uniques/NPCs Destroyed . | . . . . . . . . . . . . . . . . . . . . . . . Combat | -11 -10 -9 -9 -8 -7 -7 -6 -6 -6 -6 -6 -5 -5 -5 -4 -4 -4 -4 -3 -3 -3 -3 -------- Run | Yrd Mat Mat Min Mat Fac DSF Fac Ext Cet Arc Hub Fac Upp Upp Fac Upp Upp Zhi Pro Res Qua Sec Hostile Shots Fired 1525 | . 4 37 12 100 . 57 72 309 18 69 195 40 53 4 69 39 76 . 47 40 139 145 Missed 577 | . 1 14 1 43 . 25 29 100 4 20 64 23 27 1 33 21 37 . 18 13 61 42 Hits 948 | . 3 23 11 57 . 32 43 209 14 49 131 17 26 3 36 18 39 . 29 27 78 103 Projectile 948 | . 3 23 11 57 . 32 43 209 14 49 131 17 26 3 36 18 39 . 29 27 78 103 AOE 1 | . . . . . . . . 1 . . . . . . . . . . . . . . Critical Strikes 43 | . . . . 6 . 1 3 2 1 3 6 . . . 2 2 2 . 3 1 5 6 Actively Blocked 1 | . . . . . . . . . . . . . . . . 1 . . . . . . Part Disruptions 6 | . . . . . . . 1 . . . 3 . . . . . . . . . . 2 Damage Taken 18455 | . 24 275 99 949 . 597 612 2407 292 1185 2381 270 442 61 839 300 658 . 515 745 2778 3026 Core 2100 | . . 42 8 80 . 111 21 167 . 99 207 67 105 . 60 109 499 . 114 51 255 105 Absorbed by Shields 934 | . . . . 28 . . . 227 . . . . . . . . . . . 44 635 . Redirected to Shielding 360 | . . 2 2 . . . . . . . . . . . 64 42 . . . 162 88 . Regen/Repaired (Parts) 921 | . . . . . . . . 78 32 91 96 . . . . . . . . . . 624 Core Remaining (%) 75 | 100 100 . 87 85 . 84 . . . . 41 . . 82 . . . . 28 . . . Volleys Fired 545 | . 5 28 6 40 . 15 27 74 14 24 16 . 17 . 49 11 . . . 87 115 17 Largest 3 | . 2 2 2 3 . 3 3 3 3 3 2 . 1 . 1 1 . . . 3 2 2 Hottest 413 | . 70 90 90 167 . 140 220 195 186 186 105 . 105 . 105 56 . . . 255 413 300 Shots Fired 839 | . 10 56 12 99 . 38 56 152 27 39 23 . 17 . 49 12 . . . 102 128 19 Gun 425 | . 10 56 12 94 . 26 28 112 26 26 12 . . . . . . . . 19 . 4 Cannon 330 | . . . . . . . 23 16 . . . . 16 . 39 12 . . . 81 128 15 Launcher 78 | . . . . 5 . 12 5 19 1 13 11 . . . 10 . . . . 2 . . Special 6 | . . . . . . . . 5 . . . . 1 . . . . . . . . . Kinetic 112 | . 5 10 . 5 . . . . . 13 6 . 11 . . 12 . . . 27 13 10 Thermal 552 | . 5 10 . 55 . 22 51 133 26 13 6 . 6 . 39 . . . . 67 115 4 Explosive 74 | . . . . 5 . 12 5 18 1 13 8 . . . 10 . . . . 2 . . Electromagnetic 101 | . . 36 12 34 . 4 . 1 . . 3 . . . . . . . . 6 . 5 Robot Hit Streak 20 | . 2 13 5 16 . 9 10 13 10 6 7 . 4 . 5 2 . . . 7 20 4 Robot Miss Streak 7 | . 3 4 4 2 . 3 2 7 1 3 2 . 1 . 2 1 . . . 3 3 6 Penetration Max 2 | . . . . . . . . . . 1 1 . . . . . . . . . 2 . Secondary Targets 3 | . . 2 . . . . . 1 . . . . . . . . . . . . . . Max Gunslinging Chain 1 | . . 1 . . . . . 1 . . . . . . . . . . . . . . Shots Hit Robots 474 | . 4 34 9 59 . 24 33 90 18 37 17 4 9 . 13 4 . . . 30 57 32 Core Hits 314 | . 4 26 5 40 . 27 20 68 14 21 23 1 2 . 8 1 . . . 17 22 15 Critical Kills 7 | . . . . . . . . . . 1 1 . . . . . . . . 2 3 . Critical Parts Destroyed 14 | . . . . . . . . . . . . . . . . . . . . . 14 . Critical Strikes 53 | . . 2 . . . 2 3 7 . 4 3 . 1 . . . . . . 2 26 3 Burn 15 | . . 2 . . . 2 3 7 . . 1 . . . . . . . . . . . Meltdown 2 | . . . . . . . . . . . . . . . . . . . . 2 . . Destroy 28 | . . . . . . . . . . 1 1 . . . . . . . . . 25 1 Blast 2 | . . . . . . . . . . . . . 1 . . . . . . . 1 . Sever 6 | . . . . . . . . . . 3 1 . . . . . . . . . . 2 Melee Attacks 161 | . . . . 3 4 . 43 1 . 8 12 7 . . . . . . . . 8 75 Impact . | . . . . . . . . . . . . . . . . . . . . . . . Slashing 161 | . . . . 3 4 . 43 1 . 8 12 7 . . . . . . . . 8 75 Piercing . | . . . . . . . . . . . . . . . . . . . . . . . Sneak Attacks 7 | . . . . . . . 2 . . . . 2 . . . . . . . . . 3 Combat Hostiles . | . . . . . . . . . . . . . . . . . . . . . . . Follow-up Attacks . | . . . . . . . . . . . . . . . . . . . . . . . Damage Inflicted 24686 | . 42 595 151 1518 . 1319 1383 4122 604 1400 1179 204 304 . 1113 15 . . . 1070 6192 3475 Guns 5282 | . 42 538 116 946 . 272 365 1524 480 491 236 . . . . . . . . 272 . . Cannons 8762 | . . . . . . . 466 286 . . . . 291 . 209 15 . . . 798 6075 622 Explosions 7384 | . . 57 35 572 . 1047 434 2304 124 576 901 . . . 904 . . . . . . 430 Melee 3237 | . . . . . . . 118 . . 333 42 204 . . . . . . . . 117 2423 Ramming . | . . . . . . . . . . . . . . . . . . . . . . . Kinetic 2015 | . 18 42 . 26 . . . . . 240 141 . 291 . . 15 . . . 506 522 214 Thermal 11880 | . 24 146 35 700 . 297 831 2338 480 251 95 . 13 . 209 . . . . 508 5553 400 Explosive 6388 | . . . . 462 . 955 434 1739 124 576 764 . . . 904 . . . . . . 430 Electromagnetic 1166 | . . 407 116 330 . 67 . 45 . . 137 . . . . . . . . 56 . 8 Impact . | . . . . . . . . . . . . . . . . . . . . . . . Slashing 3237 | . . . . . . . 118 . . 333 42 204 . . . . . . . . 117 2423 Piercing . | . . . . . . . . . . . . . . . . . . . . . . . Highest Corruption 63 | . 2 . 1 . . . 4 15 15 15 22 1 1 2 6 7 7 7 7 4 36 63 Average Corruption 11 | . 1 . 1 . . . 1 8 15 15 17 1 1 1 3 6 7 7 7 3 18 44 Corruption Purged 6 | . . . . . . . . . . . . . . . . . . . . . . 6 Corruption Blocked . | . . . . . . . . . . . . . . . . . . . . . . . Effects 269 | . . . . . . . 18 49 11 11 14 2 2 . 2 11 12 2 7 19 56 53 Message Errors 55 | . . . . . . . 7 9 1 . 4 . 1 . . 4 5 . 1 3 10 10 Matter Fused 67 | . . . . . . . 4 18 4 5 3 1 . . 2 1 . . 1 6 12 10 Heat Flow Errors 33 | . . . . . . . 1 5 1 3 1 . . . . 1 3 1 1 2 7 7 Energy Discharges 26 | . . . . . . . 2 3 2 2 1 . . . . . 2 1 2 2 4 5 Parts Rejected 7 | . . . . . . . . . . . 1 . . . . 1 . . . 1 1 3 Parts Fused 6 | . . . . . . . . 2 1 . . 1 . . . . . . . 1 1 . Data Loss (minor) 29 | . . . . . . . 3 3 1 . 2 . 1 . . 2 2 . 2 3 6 4 Data Loss (major) 6 | . . . . . . . . 2 . . . . . . . 1 . . . . 2 1 Misfires 7 | . . . . . . . 1 1 . . . . . . . 1 . . . . 2 2 Alerts 6 | . . . . . . . . 1 . . . . . . . . . . . 1 4 . Misdirections 13 | . . . . . . . . . . . 1 . . . . . . . . . 2 10 Weapon Failures 14 | . . . . . . . . 5 1 1 1 . . . . . . . . . 5 1 Overload Shots . | . . . . . . . . . . . . . . . . . . . . . . . Overflow Damage 2009 | . . . . 10 . 26 42 107 . . . 74 3 . 30 . . . . 44 1214 459 Projectiles 1339 | . . . . . . . 23 37 . . . . 3 . 10 . . . . 44 1214 8 Explosions 254 | . . . . 10 . 26 19 70 . . . . . . 20 . . . . . . 109 Melee 416 | . . . . . . . . . . . . 74 . . . . . . . . . 342 Knockbacks 14 | . . . . . . . . . . . . . . . . . . . . 5 7 2 Impact . | . . . . . . . . . . . . . . . . . . . . . . . Kinetic 12 | . . . . . . . . . . . . . . . . . . . . 3 7 2 Secondary 2 | . . . . . . . . . . . . . . . . . . . . 2 . . Self-Inflicted Damage 771 | . . 27 . 102 . . 55 83 . . 248 . . . 120 . . . . . . 136 Shots 21 | . . 1 . 3 . . 3 2 . . 8 . . . 3 . . . . . . 1 Rammed . | . . . . . . . . . . . . . . . . . . . . . . . Targets Rammed . | . . . . . . . . . . . . . . . . . . . . . . . Kicked . | . . . . . . . . . . . . . . . . . . . . . . . Crushed . | . . . . . . . . . . . . . . . . . . . . . . . Highest Temperature 629 | . 40 258 105 149 . 92 398 363 96 241 208 . 281 . 317 119 230 168 110 367 629 516 Average Temperature 117 | . 21 68 49 45 . 47 106 130 27 82 85 . 83 . 105 46 105 103 49 148 162 143 Received Heat Transfer 3043 | . . 138 . 232 . 54 123 676 99 216 225 18 36 . . . 84 . 167 99 284 592 Effects 28 | . . . . . . . 4 4 . . . . . . . . . . . 10 7 3 Shutdowns 5 | . . . . . . . 1 . . . . . . . . . . . . 1 3 . Energy Bleed 7 | . . . . . . . 3 1 . . . . . . . . . . . 2 1 . Interference 12 | . . . . . . . . 2 . . . . . . . . . . . 5 2 3 Matter Decay 3 | . . . . . . . . 1 . . . . . . . . . . . 2 . . Short Circuit 1 | . . . . . . . . . . . . . . . . . . . . . 1 . Siege Activations . | . . . . . . . . . . . . . . . . . . . . . . . Martial Activations . | . . . . . . . . . . . . . . . . . . . . . . . Shielding Activations . | . . . . . . . . . . . . . . . . . . . . . . . Robots Disrupted . | . . . . . . . . . . . . . . . . . . . . . . . Combat Hostiles . | . . . . . . . . . . . . . . . . . . . . . . . Robots Corrupted 1 | . . . . . . . . . . . 1 . . . . . . . . . . . Combat Hostiles 1 | . . . . . . . . . . . 1 . . . . . . . . . . . Parts Fried 2 | . . . . . . . . . . . 2 . . . . . . . . . . . Impact Corruptions . | . . . . . . . . . . . . . . . . . . . . . . . Robots Melted 7 | . . 1 . . . . 1 2 . . . . . . . . . . . 3 . . Combat Hostiles 4 | . . . . . . . 1 1 . . . . . . . . . . . 2 . . Parts Melted 21 | . . . . 3 . . 6 6 . . . . . . . . . . . 6 . . Heat Transferred 12014 | . 74 507 . 1334 . 705 1648 4618 907 420 259 . 80 . 222 . . . . 500 740 . Parts Sabotaged . | . . . . . . . . . . . . . . . . . . . . . . . Parts Stolen . | . . . . . . . . . . . . . . . . . . . . . . . Parts Stripped . | . . . . . . . . . . . . . . . . . . . . . . . Power Chain Reactions 6 | . . 1 1 2 . 1 . 1 . . . . . . . . . . . . . . Alert | -11 -10 -9 -9 -8 -7 -7 -6 -6 -6 -6 -6 -5 -5 -5 -4 -4 -4 -4 -3 -3 -3 -3 ------- Run | Yrd Mat Mat Min Mat Fac DSF Fac Ext Cet Arc Hub Fac Upp Upp Fac Upp Upp Zhi Pro Res Qua Sec Maximum Alert Level 3 | . . . . . . 1 . 3 2 1 1 2 . . 1 . . . . . . . Low Security (%) 80 | 100 100 100 100 100 100 64 100 20 . 33 54 62 . . 75 . . . . 100 100 100 Level 1 10 | . . . . . . 35 . 37 . 66 45 22 . . 24 . . . . . . . Level 2 7 | . . . . . . . . 30 100 . . 15 . . . . . . . . . . Level 3 1 | . . . . . . . . 11 . . . . . . . . . . . . . . Level 4 . | . . . . . . . . . . . . . . . . . . . . . . . Level 5 . | . . . . . . . . . . . . . . . . . . . . . . . High Security . | . . . . . . . . . . . . . . . . . . . . . . . Max Security . | . . . . . . . . . . . . . . . . . . . . . . . Sterilizations 1 | . . . . . . 1 . . . . . . . . . . . . . . . . Peak Influence 877 | . 50 173 148 175 16 269 190 877 650 268 358 512 . . 320 . . . . 34 152 175 Initial 476 | . . 1 55 8 16 . 140 76 476 248 70 168 . . 146 . . . . 13 4 65 Average 136 | . 14 48 84 102 2 130 83 410 574 205 166 223 . . 179 . . . . 4 49 29 Influence Increases 7255 | . 62 270 98 562 16 289 428 1604 364 124 563 474 200 . 512 210 . . 60 261 648 510 Destroy 0b10 Robot/C 3040 | . 20 220 80 300 . 200 160 900 200 60 200 . 20 . 60 . . . . 80 320 220 Destroy 0b10 Robot/NC 215 | . 10 10 5 35 . 20 15 35 5 . 25 5 . . 5 . . . . 20 10 15 Destroy Leader 550 | . 2 22 10 80 . 30 60 116 20 . 40 . . . 22 . . . . 34 62 52 Allied During Kill 448 | . . . . 3 . . . 331 110 . . . . . . . . . . . . 4 Successful Hack 136 | . . . . 10 12 . 23 28 9 . 14 . . . 22 . . . . 18 . . Disable Machine 540 | . . 15 . 60 . . 90 30 15 45 105 . . . 15 . . . . . 75 90 Destroy Structure 826 | . . 3 3 44 4 24 80 89 5 19 59 4 . . 148 . . . . 94 136 114 Partial Spotted 30 | . . . . . . . . . . . . 15 . . . . . . . 15 . . Lose Combat Pursuer 1470 | . 30 . . 30 . 15 . 75 . . 120 450 180 . 240 210 . . 60 . 45 15 Influence Decreases 7100 | . 57 132 218 548 53 20 541 909 595 542 422 305 410 69 443 371 141 . 40 273 540 471 Entered New Map 1930 | . . 4 88 15 21 . 129 80 375 372 132 175 190 59 87 113 28 . . 7 4 51 Time Decay 3782 | . 57 128 130 453 32 . 412 559 110 100 150 80 180 . 206 198 113 . 30 266 280 298 Search Patrol Dispatched 100 | . . . . . . . . . . . . . . . 100 . . . . . . . Lost Part 816 | . . . . 60 . 20 . 50 10 50 140 30 20 10 50 60 . . 10 . 184 122 Lost Ally 420 | . . . . 20 . . . 220 100 20 . 20 20 . . . . . . . 20 . Purge Threat 52 | . . . . . . . . . . . . . . . . . . . . . 52 . Squads Dispatched 53 | . . 1 . 5 . 2 6 7 2 . 6 1 . . 2 . . . . 3 8 10 Investigation 13 | . . 1 . 1 . . 1 4 2 . 2 1 . . . . . . . . . 1 Extermination 17 | . . . . . . . 4 . . . 1 . . . 2 . . . . 3 4 3 Reinforcement 17 | . . . . 3 . 2 1 2 . . 3 . . . . . . . . . 4 2 Assault 1 | . . . . . . . . 1 . . . . . . . . . . . . . . Garrison 4 | . . . . 1 . . . . . . . . . . . . . . . . . 3 Intercept 1 | . . . . . . . . . . . . . . . . . . . . . . 1 Searches Triggered 1 | . . . . . . . . . . . . . . . 1 . . . . . . . Construction Impeded 3 | . . . . 1 . . 1 1 . . . . . . . . . . . . . . Haulers Reinforced 2 | . . . . . . . . . . . 1 . . . . . . . . . . 1 Active Scanning Responses . | . . . . . . . . . . . . . . . . . . . . . . . Cargo Convoy Interrupts . | . . . . . . . . . . . . . . . . . . . . . . . Stealth | -11 -10 -9 -9 -8 -7 -7 -6 -6 -6 -6 -6 -5 -5 -5 -4 -4 -4 -4 -3 -3 -3 -3 --------- Run | Yrd Mat Mat Min Mat Fac DSF Fac Ext Cet Arc Hub Fac Upp Upp Fac Upp Upp Zhi Pro Res Qua Sec Distress Signals 10 | . . 3 . . . . . 2 1 . 2 . . . . . . . 1 1 . . Communications Jammed . | . . . . . . . . . . . . . . . . . . . . . . . Distress Signals . | . . . . . . . . . . . . . . . . . . . . . . . Times Spotted 348 | . 3 16 2 26 . 11 8 53 10 14 18 38 15 3 29 20 9 . 9 11 27 26 Peak Tracking Total 16 | . 3 7 2 7 . 4 3 8 5 2 7 16 8 3 8 8 9 . 7 2 4 7 Tactical Retreats 35 | . 1 . . 1 . 1 . 4 . . 3 5 4 . 6 4 . . 2 . 3 1 ECM-based Alert Blocks 3 | . . . . . . . . . . . . . . . 3 . . . . . . . Traps | -11 -10 -9 -9 -8 -7 -7 -6 -6 -6 -6 -6 -5 -5 -5 -4 -4 -4 -4 -3 -3 -3 -3 ------- Run | Yrd Mat Mat Min Mat Fac DSF Fac Ext Cet Arc Hub Fac Upp Upp Fac Upp Upp Zhi Pro Res Qua Sec Traps Triggered 9 | . 2 1 . . . . 1 . . . . . . . 3 . . . . 1 . 1 Indirectly . | . . . . . . . . . . . . . . . . . . . . . . . Trap Hack Attempts . | . . . . . . . . . . . . . . . . . . . . . . . Triggered . | . . . . . . . . . . . . . . . . . . . . . . . Disarmed . | . . . . . . . . . . . . . . . . . . . . . . . Reprogrammed . | . . . . . . . . . . . . . . . . . . . . . . . Reused . | . . . . . . . . . . . . . . . . . . . . . . . Traps Extracted . | . . . . . . . . . . . . . . . . . . . . . . . Installed . | . . . . . . . . . . . . . . . . . . . . . . . Triggered . | . . . . . . . . . . . . . . . . . . . . . . . Machines | -11 -10 -9 -9 -8 -7 -7 -6 -6 -6 -6 -6 -5 -5 -5 -4 -4 -4 -4 -3 -3 -3 -3 ---------- Run | Yrd Mat Mat Min Mat Fac DSF Fac Ext Cet Arc Hub Fac Upp Upp Fac Upp Upp Zhi Pro Res Qua Sec Machines Disabled 36 | . . 1 . 4 . . 6 2 1 3 7 . . . 1 . . . . . 5 6 Max in Single Turn 4 | . . 1 . 1 . . 4 1 1 2 4 . . . 1 . . . . . 1 2 Machines Repaired . | . . . . . . . . . . . . . . . . . . . . . . . Machines Dismantled . | . . . . . . . . . . . . . . . . . . . . . . . Machines Sabotaged . | . . . . . . . . . . . . . . . . . . . . . . . Overloaded Fab Kills . | . . . . . . . . . . . . . . . . . . . . . . . Hacking | -11 -10 -9 -9 -8 -7 -7 -6 -6 -6 -6 -6 -5 -5 -5 -4 -4 -4 -4 -3 -3 -3 -3 --------- Run | Yrd Mat Mat Min Mat Fac DSF Fac Ext Cet Arc Hub Fac Upp Upp Fac Upp Upp Zhi Pro Res Qua Sec Machines Accessed 60 | . . . . 3 2 . 4 12 2 . 5 2 1 . 3 . . 9 . 7 6 4 Terminals 38 | . . . . 2 1 . 1 12 2 . 5 2 . . 1 . . . . 4 4 4 Fabricators 2 | . . . . . . . 1 . . . . . . . 1 . . . . . . . Repair Stations . | . . . . . . . . . . . . . . . . . . . . . . . Recycling Units 3 | . . . . . . . 1 . . . . . . . 1 . . . . 1 . . Scanalyzers 7 | . . . . 1 1 . 1 . . . . . . . . . . . . 2 2 . Garrison Access . | . . . . . . . . . . . . . . . . . . . . . . . Total Hacks 161 | . . . . 10 6 . 9 27 5 . 10 3 1 . 5 . . 48 . 19 12 6 Successful 85 | . . . . 6 2 . 5 8 1 . 1 1 1 . 4 . . 48 . 4 4 . Failed 75 | . . . . 4 4 . 4 19 4 . 9 2 . . 1 . . . . 15 7 6 Catastrophic 25 | . . . . . . . 1 6 3 . 5 . . . . . . . . 5 1 4 Database Lockouts 1 | . . . . . . . . . . . . . . . . . . . . . 1 . Manual 18 | . . . . 5 . . 2 5 . . 1 2 . . 1 . . . . . 2 . Terminals 81 | . . . . 6 2 . 1 27 5 . 10 3 . . 2 . . . . 12 7 6 Fabricators 4 | . . . . . . . 3 . . . . . . . 1 . . . . . . . Repair Stations . | . . . . . . . . . . . . . . . . . . . . . . . Recycling Units 5 | . . . . . . . 2 . . . . . . . 2 . . . . 1 . . Scanalyzers 22 | . . . . 4 4 . 3 . . . . . . . . . . . . 6 5 . Garrison Access . | . . . . . . . . . . . . . . . . . . . . . . . Terminal Hacks 67 | . . . . 1 1 . 1 7 1 . 1 1 1 . 1 . . 48 . 2 2 . Record 40 | . . . . . . . . 1 1 . 1 . . . . . . 36 . . 1 . Part Schematic 4 | . . . . . . . . . . . . . . . . . . 4 . . . . Robot Analysis 4 | . . . . . . . . . . . . . . . . . . 4 . . . . Prototype ID Bank 5 | . . . . 1 . . . . . . . . . . . . . 4 . . . . Open Door 9 | . . . . . . . 1 6 . . . . 1 . . . . . . 1 . . Open DSF 1 | . . . . . 1 . . . . . . . . . . . . . . . . . Branch Access Points 1 | . . . . . . . . . . . . . . . . . . . . 1 . . Unreport Threat 1 | . . . . . . . . . . . . . . . . . . . . . 1 . Zone Layout 2 | . . . . . . . . . . . . 1 . . 1 . . . . . . . Fabricator Hacks . | . . . . . . . . . . . . . . . . . . . . . . . Repair Station Hacks . | . . . . . . . . . . . . . . . . . . . . . . . Recycling Unit Hacks 3 | . . . . . . . 1 . . . . . . . 2 . . . . . . . Report Inventory 1 | . . . . . . . 1 . . . . . . . . . . . . . . . Retrieve Components 2 | . . . . . . . . . . . . . . . 2 . . . . . . . Scanalyzer 11 | . . . . 4 1 . 2 . . . . . . . . . . . . 2 2 . Insert Component 2 | . . . . 1 . . 1 . . . . . . . . . . . . . . . Analyze 2 | . . . . 1 . . 1 . . . . . . . . . . . . . . . Retrieve Study 7 | . . . . 2 1 . . . . . . . . . . . . . . 2 2 . Garrison Access Hacks . | . . . . . . . . . . . . . . . . . . . . . . . Unauthorized Hacks 4 | . . . . 1 . . 1 1 . . . . . . 1 . . . . . . . Terminals 2 | . . . . 1 . . . 1 . . . . . . . . . . . . . . Botnet 1 | . . . . 1 . . . . . . . . . . . . . . . . . . Sabotage 1 | . . . . . . . . 1 . . . . . . . . . . . . . . Fabricators 2 | . . . . . . . 1 . . . . . . . 1 . . . . . . . Fabnet 2 | . . . . . . . 1 . . . . . . . 1 . . . . . . . Repair Stations . | . . . . . . . . . . . . . . . . . . . . . . . Recycling Units . | . . . . . . . . . . . . . . . . . . . . . . . Scanalyzers . | . . . . . . . . . . . . . . . . . . . . . . . Garrison Access . | . . . . . . . . . . . . . . . . . . . . . . . Data Cores Recovered . | . . . . . . . . . . . . . . . . . . . . . . . Used . | . . . . . . . . . . . . . . . . . . . . . . . Hacking Detections 43 | . . . . 3 2 . 3 10 2 . 5 1 . . 1 . . . . 7 5 4 Full Trace Events 11 | . . . . 1 . . 1 3 2 . 2 1 . . . . . . . . . 1 Feedback Events 2 | . . . . . . . . . . . 1 1 . . . . . . . . . . Corruption 2 | . . . . . . . . . . . 1 1 . . . . . . . . . . Feedback Blocked . | . . . . . . . . . . . . . . . . . . . . . . . Robot Schematics Acquired 2 | . . . . . . . . . . . . . . . . . . . . . 2 . Robots Built . | . . . . . . . . . . . . . . . . . . . . . . . Authchips . | . . . . . . . . . . . . . . . . . . . . . . . Time . | . . . . . . . . . . . . . . . . . . . . . . . Total Robot Build Rating . | . . . . . . . . . . . . . . . . . . . . . . . Part Schematics Acquired 9 | . . . . 1 . . 1 . . . . . . . . . . 4 . . 3 . Parts Built . | . . . . . . . . . . . . . . . . . . . . . . . Authchips . | . . . . . . . . . . . . . . . . . . . . . . . Time . | . . . . . . . . . . . . . . . . . . . . . . . Total Part Build Rating . | . . . . . . . . . . . . . . . . . . . . . . . Part Studies Acquired 7 | . . . . 2 1 . . . . . . . . . . . . . . 2 2 . Parts Repaired . | . . . . . . . . . . . . . . . . . . . . . . . Time . | . . . . . . . . . . . . . . . . . . . . . . . Parts Recycled . | . . . . . . . . . . . . . . . . . . . . . . . Recycled Matter . | . . . . . . . . . . . . . . . . . . . . . . . Retrieved Matter . | . . . . . . . . . . . . . . . . . . . . . . . Retrieved Components . | . . . . . . . . . . . . . . . . . . . . . . . Parts Scanalyzed 2 | . . . . 1 . . 1 . . . . . . . . . . . . . . . Part Schematics Acquired 2 | . . . . 1 . . 1 . . . . . . . . . . . . . . . Parts Damaged . | . . . . . . . . . . . . . . . . . . . . . . . Bothacking | -11 -10 -9 -9 -8 -7 -7 -6 -6 -6 -6 -6 -5 -5 -5 -4 -4 -4 -4 -3 -3 -3 -3 ------------ Run | Yrd Mat Mat Min Mat Fac DSF Fac Ext Cet Arc Hub Fac Upp Upp Fac Upp Upp Zhi Pro Res Qua Sec Used RIF Installer . | . . . . . . . . . . . . . . . . . . . . . . . Robots Hacked 4 | . . . . . . . . . . . . 1 . . . . . . . . 1 2 Non-combat . | . . . . . . . . . . . . . . . . . . . . . . . Combat 4 | . . . . . . . . . . . . 1 . . . . . . . . 1 2 Robot Hacks Applied . | . . . . . . . . . . . . . . . . . . . . . . . Relay Couplers Released . | . . . . . . . . . . . . . . . . . . . . . . . Fabnet Peak Effective % 3 | . . . . . . . . . . . . 3 3 3 1 1 1 1 3 3 3 3 Autooverrided 4 | . . . . . . . . . . . . 1 . . . . . . . . 1 2 Robots Rewired 17 | . . . . . . . . 17 . . . . . . . . . . . . . . Allies Hacked 1 | . . . . . . . . 1 . . . . . . . . . . . . . . Hacks Repelled . | . . . . . . . . . . . . . . . . . . . . . . . Allies | -11 -10 -9 -9 -8 -7 -7 -6 -6 -6 -6 -6 -5 -5 -5 -4 -4 -4 -4 -3 -3 -3 -3 -------- Run | Yrd Mat Mat Min Mat Fac DSF Fac Ext Cet Arc Hub Fac Upp Upp Fac Upp Upp Zhi Pro Res Qua Sec Total Allies 29 | . . . 2 . . . . 23 . . . 1 . . . . . . . . 1 2 Largest Group 8 | . . . 2 1 . . . 8 8 2 . 1 . . . . . . . . 1 1 Highest-Rated Group 367 | . . . 57 31 . . . 367 250 51 . 12 . . . . . . . . 82 82 Highest-Rated Ally 159 | . . . 31 31 . . . 159 39 34 . 12 . . . . . . . . 82 82 Initial Warlord ECA Mod 9 | . . . . . . . 9 9 9 9 9 8 8 8 7 5 5 5 4 4 2 2 Warlord Squad Rendezvous 4 | . . . . . . . . . . . . . . . 2 . . . . 2 . . Infantry 1 | . . . . . . . . . . . . . . . 1 . . . . . . . Pyro 3 | . . . . . . . . . . . . . . . 1 . . . . 2 . . Total Orders . | . . . . . . . . . . . . . . . . . . . . . . . Ally Attacks 230 | . . . . 14 . . . 178 22 . . 1 . . . . . . . . 2 13 Total Damage 4539 | . . . . 170 . . . 3734 488 . . . . . . . . . . . . 147 Kills 40 | . . . . . . . . 32 8 . . . . . . . . . . . . . Allies Corrupted . | . . . . . . . . . . . . . . . . . . . . . . . Allies Melted . | . . . . . . . . . . . . . . . . . . . . . . . Intel | -11 -10 -9 -9 -8 -7 -7 -6 -6 -6 -6 -6 -5 -5 -5 -4 -4 -4 -4 -3 -3 -3 -3 ------- Run | Yrd Mat Mat Min Mat Fac DSF Fac Ext Cet Arc Hub Fac Upp Upp Fac Upp Upp Zhi Pro Res Qua Sec Active Infowar (turns) 9342 | . . . 108 12 278 233 1684 1535 235 218 306 165 367 6 429 413 338 127 259 1233 778 618 Optics 4167 | . . . . . . . . . . . . 165 367 6 429 413 338 127 259 1200 626 237 Sensors 3882 | . . . . . 278 140 1302 31 . . 16 . 150 6 425 129 . . . 669 736 . IFF 77 | . . . . . . . . . . . . . . . . . 77 . . . . . Terrain 120 | . . . 108 12 . . . . . . . . . . . . . . . . . . Structural 273 | . . . . . . . 66 31 . . 176 . . . . . . . . . . . Machine Analysis 6822 | . . . . . 276 233 1684 1535 235 218 306 165 367 6 429 413 337 . . . . 618 Cloaking 884 | . . . . . . . . . . . . . . . 271 85 . . . . 528 . Jamming 257 | . . . . . . . . . . . . . . . 56 . . . . . . 201 ECM 39 | . . . . . . . . . . . . . . . 39 . . . . . . . Robot Analysis Total 4 | . . . . . . . . . . . . . . . . . . 4 . . . . Derelict Logs Recovered 4 | . . . 1 . . . . . . . . . 1 . . 1 1 . . . . . Drone Launches 2 | . . . . . . . . . . . . . 2 . . . . . . . . . Drone Recoveries . | . . . . . . . . . . . . . . . . . . . . . . . Exploration | -11 -10 -9 -9 -8 -7 -7 -6 -6 -6 -6 -6 -5 -5 -5 -4 -4 -4 -4 -3 -3 -3 -3 ------------- Run | Yrd Mat Mat Min Mat Fac DSF Fac Ext Cet Arc Hub Fac Upp Upp Fac Upp Upp Zhi Pro Res Qua Sec Turns Passed 12103 | 79 188 326 273 1186 278 233 1684 1641 235 218 306 165 367 6 429 413 338 127 259 1233 1245 874 Spaces Moved 10259 | 47 101 141 159 451 212 103 660 658 109 70 170 415 980 20 713 605 788 242 499 1014 1208 894 Core 173 | 6 . . . . . . . . . . 2 . . . . . 58 107 . . . . Treads 2114 | 41 101 141 159 5 . 76 660 658 109 70 94 . . . . . . . . . . . Legs 687 | . . . . 446 212 27 . . . . 2 . . . . . . . . . . . Wheels 26 | . . . . . . . . . . . 26 . . . . . . . . . . . Hover 3750 | . . . . . . . . . . . . . . . . . . 135 499 1014 1208 894 Flight 3509 | . . . . . . . . . . . 46 415 980 20 713 605 730 . . . . . Fastest Speed 26 | 50 160 160 160 130 115 115 167 162 162 162 26 26 27 30 27 29 35 42 37 42 36 46 Average Speed 73 | 145 160 160 160 130 119 155 169 163 162 162 121 30 27 30 29 32 39 45 50 64 45 52 Slowest Speed 600 | 160 160 160 160 200 130 170 250 168 162 163 600 106 30 30 32 47 50 50 52 122 102 127 Overloaded Moves 138 | . . . . . . . . . . . . . . . . . . . 43 74 21 . Propulsion Burnouts . | . . . . . . . . . . . . . . . . . . . . . . . Robots Hopped 22 | . . . . . . . . . . . . 9 5 1 1 6 . . . . . . Potential Cave-ins 76 | . . . . . . . . . . . . . . . . . . . . 6 39 31 Cave-ins Triggered 7 | . . . . . . . . . . . . . . . . . . . . . 4 3 Teleports 1 | . . . . . . . . . . . . . . . . . . 1 . . . . Exploration Rate (%) 44 | 4 18 19 39 39 7 83 13 76 60 66 30 17 93 8 24 69 82 63 73 26 77 38 Regions Visited 22 Branch Regions 13 Pre-discovered Areas 5 | . . . . . . . . . . . . . 1 . . 1 . 3 . . . . Known Exits Taken 8 | . . . . 1 1 . . . . . . . . . 1 1 1 1 1 1 . . Unknown Exits Taken 13 | 1 1 1 1 . . . 1 1 1 1 1 1 1 1 . . . . . . 1 . Scrap Searched 8 | . . . . . . . . . . . . . 4 . . 2 2 . . . . . Spaces Dug 277 | . . . . 2 4 . 43 1 . . 10 2 5 . 30 . . . . 49 68 63 Terrain Destroyed 780 | . . 3 3 41 4 27 88 107 . 35 60 2 8 . 86 . . . . 62 168 86 Melee 89 | . . . . 2 4 . 40 1 . . 6 2 . . . . . . . . 2 32 Projectile 315 | . . . . . . . 9 9 . 3 1 . 8 . 32 . . . . 56 166 31 AOE 376 | . . 3 3 39 . 27 39 97 . 32 53 . . . 54 . . . . 6 . 23 Terrain Rammed . | . . . . . . . . . . . . . . . . . . . . . . . Walls Destroyed . | . . . . . . . . . . . . . . . . . . . . . . . Machines Disabled . | . . . . . . . . . . . . . . . . . . . . . . . Actions | -11 -10 -9 -9 -8 -7 -7 -6 -6 -6 -6 -6 -5 -5 -5 -4 -4 -4 -4 -3 -3 -3 -3 --------- Run | Yrd Mat Mat Min Mat Fac DSF Fac Ext Cet Arc Hub Fac Upp Upp Fac Upp Upp Zhi Pro Res Qua Sec Total 13637 | 56 118 187 168 960 230 145 1103 1074 142 123 224 432 1052 18 880 805 815 253 503 1484 1743 1122 Wait 1906 | . 10 6 . 410 . 6 324 88 7 16 1 6 34 . 63 187 14 . . 312 359 63 Move 10190 | 46 100 140 158 450 212 102 659 657 108 69 169 396 970 17 710 594 787 241 498 1013 1203 891 Hop 19 | . . . . . . . . . . . . 9 4 1 1 4 . . . . . . Pick Up 73 | 4 2 5 1 8 2 4 6 3 1 2 4 1 4 . 6 3 2 1 . 5 2 7 Fast Attach 200 | 3 1 5 1 13 2 6 5 13 1 2 9 6 7 . 22 1 6 9 1 28 21 38 Attach 51 | 3 . . . 6 6 2 1 3 . 2 5 1 5 . 2 3 . 1 2 2 2 5 Detach 43 | . . 2 . 4 2 3 . 2 . . 2 2 4 . 6 . 1 . . 9 3 3 Swap 99 | . . . . 11 1 2 26 19 6 . 2 . 1 . 3 . . 1 2 10 12 3 Drop 143 | . . 1 2 15 1 5 12 14 5 . 4 4 6 . 18 2 5 . . 18 14 17 Fire 545 | . 5 28 6 40 . 15 27 74 14 24 16 . 17 . 49 11 . . . 87 115 17 Melee 161 | . . . . 3 4 . 43 1 . 8 12 7 . . . . . . . . 8 75 Ram . | . . . . . . . . . . . . . . . . . . . . . . . Kick . | . . . . . . . . . . . . . . . . . . . . . . . Crush . | . . . . . . . . . . . . . . . . . . . . . . . Escape Stasis 7 | . . . . . . . . . . . . . . . . . . . . . 4 3 Rewire 200 | . . . . . . . . 200 . . . . . . . . . . . . . . Trap . | . . . . . . . . . . . . . . . . . . . . . . . Miscellaneous . | . . . . . . . . . . . . . . . . . . . . . . . Route ------- -11/Scrapyard -10/Materials -9/Materials -9/Mines -8/Materials (discovered 2 exits: *Fac x2) -7/Factory -7/DSF -6/Factory -6/Extension (discovered 2 exits: *Fac / *Cet) -6/Cetus -6/Archives -6/Hub_04(d) -5/Factory -5/Upper Caves -5/Upper Caves -4/Factory (discovered 2 exits: Res / *Upp) -4/Upper Caves -4/Upper Caves (discovered 2 exits: *Res / *Zhi) -4/Zhirov -3/Proximity Caves -3/Research (discovered 4 exits: *Res / Arm / *Qua x2) -3/Quarantine (discovered 3 exits: *Res / *Sec / [*Frg]) -3/Section 7 (discovered 1 exit: *Res) History --------- Turn | Location | Event 17 | -11/Scrapyard | Discovered new exit (range 16) 80 | -11/Scrapyard | Entered Materials 262 | -10/Materials | Discovered new exit (range 4) 268 | -10/Materials | Entered another Materials area 268 | -9/Materials | Evolved 2 slots: Utility x2 315 | -9/Materials | Build established: Mutant 504 | -9/Materials | Discovered new exit (range 10) 594 | -9/Materials | Entered Mines 851 | -9/Mines | Discovered new exit (range 11) 867 | -9/Mines | Entered Materials 867 | -8/Materials | Accompanied by 1 ally 867 | -8/Materials | Evolved 2 slots: Propulsion x1, Weapon x1 868 | -8/Materials | Identified exit to Factory 872 | -8/Materials | Led the pair of lost Derelicts to an unsafe place 1284 | -8/Materials | Build established: Gunner 2037 | -8/Materials | Discovered exit to Factory (range 3) 2044 | -8/Materials | Garrison activated, responded to threat 2053 | -8/Materials | Entered Factory 2053 | -7/Factory | Evolved 2 slots: Propulsion x1, Utility x1 2082 | -7/Factory | Lost 4 parts (2u2w) 2328 | -7/Factory | Build established: Assassin 2331 | -7/Factory | Identified exit to DSF 2331 | -7/Factory | Entered DSF 2376 | -7/DSF | Additional patrols routed to DSF 2486 | -7/DSF | Sterilization system engaged 2502 | -7/DSF | Destroyed 9 combat bots 2506 | -7/DSF | Ambient heat levels rising (+10) 2521 | -7/DSF | Ambient heat levels rising (+10) 2531 | -7/DSF | Discovered new exit (range 16) 2536 | -7/DSF | Ambient heat levels rising (+10) 2551 | -7/DSF | Ambient heat levels rising (+10) 2564 | -7/DSF | Entered Factory 2564 | -6/Factory | Evolved 2 slots: Power x1, Propulsion x1 2893 | -6/Factory | Build established: Mutant 4235 | -6/Factory | Discovered new exit (range 10) 4248 | -6/Factory | Entered Extension 4405 | -6/Extension | Rescued a captive Derelict 4640 | -6/Extension | Rescued a captive Derelict 4688 | -6/Extension | Rescued A7 4940 | -6/Extension | Build established: Scavenger-Tank 5051 | -6/Extension | Spotted B-75 Beast 5103 | -6/Extension | Allies destroyed B-75 Beast 5106 | -6/Extension | Spotted B-75 Beast 5108 | -6/Extension | Lost 3 allies 5145 | -6/Extension | Allies destroyed B-75 Beast 5170 | -6/Extension | System corruption reached 10% 5198 | -6/Extension | Disrupted transfer network 5270 | -6/Extension | Rescued a captive Derelict 5501 | -6/Extension | Rescued a captive Derelict 5646 | -6/Extension | Build established: Scavenger-Mutant 5648 | -6/Extension | First assault squad dispatched 5711 | -6/Extension | Extracted ID and sensor layout for unrecognized location from A7's data core 5733 | -6/Extension | Found Prototype Protection 5733 | -6/Extension | Identified Med. Regenerative Plating 5753 | -6/Extension | Lost 5 allies 5755 | -6/Extension | Lost 3 parts (1n1u1w) 5795 | -6/Extension | Rescued a captive Derelict 5852 | -6/Extension | Discovered new exit (range 10) 5854 | -6/Extension | Discovered new exit (range 6) 5889 | -6/Extension | Entered Cetus 5889 | -6/Cetus | Accompanied by 8 allies 5910 | -6/Cetus | Spotted Cetus Guard 5911 | -6/Cetus | Spotted Cetus Guard 5913 | -6/Cetus | Spotted Cetus Guard 5913 | -6/Cetus | Allies destroyed Cetus Guard 5914 | -6/Cetus | Spotted Cetus Guard 5915 | -6/Cetus | Allies destroyed Cetus Guard 5922 | -6/Cetus | Allies destroyed Cetus Guard 5924 | -6/Cetus | Allies destroyed Cetus Guard 6073 | -6/Cetus | Lost 5 allies 6093 | -6/Cetus | Discovered new exit (range 15) 6124 | -6/Cetus | Entered Archives 6124 | -6/Archives | Accompanied by 2 allies 6197 | -6/Archives | Lost 3 parts (1u2w) 6311 | -6/Archives | Unable to access archive contents 6314 | -6/Archives | Discovered new exit (range 15) 6342 | -6/Archives | Entered Hub_04(d) 6538 | -6/Hub_04(d) | Destroyed 7 combat bots 6558 | -6/Hub_04(d) | Core integrity fell below 50% 6641 | -6/Hub_04(d) | Lost 13 parts (1p4n4u4w) 6645 | -6/Hub_04(d) | Discovered new exit (range 5) 6648 | -6/Hub_04(d) | Entered Factory 6648 | -5/Factory | Evolved 2 slots: Propulsion x1, Utility x1 6801 | -5/Factory | Lost 3 parts (1n1u1w) 6809 | -5/Factory | Discovered new exit (range 13) 6813 | -5/Factory | Entered Upper Caves 6819 | -5/Upper Caves | Met a Warlord Commander 6820 | -5/Upper Caves | Learned location of Warlord (-5) 6821 | -5/Upper Caves | Warlord Commander delivered Encrypted Comm Array 6821 | -5/Upper Caves | Found Encrypted Comm Array 6869 | -5/Upper Caves | Found Alien Artifact 6870 | -5/Upper Caves | Identified Core Expander 6870 | -5/Upper Caves | Installed Core Expander, added new Propulsion slot 6949 | -5/Upper Caves | Attracted the attention of an 0b10 checkpoint 7040 | -5/Upper Caves | Spotted B-75 Beast 7069 | -5/Upper Caves | Encountered a Warlord checkpoint 7071 | -5/Upper Caves | Build established: Sprinter 7078 | -5/Upper Caves | Learned location of 1 exit from Factory 7110 | -5/Upper Caves | Attracted the attention of an 0b10 outpost 7172 | -5/Upper Caves | Discovered new exit (range 12) 7180 | -5/Upper Caves | Entered another Upper Caves area 7181 | -5/Upper Caves | Spotted B-75 Beast 7185 | -5/Upper Caves | Discovered new exit (range 6) 7186 | -5/Upper Caves | Entered Factory 7186 | -4/Factory | Evolved 2 slots: Utility x2 7187 | -4/Factory | Identified exit to Research 7301 | -4/Factory | Joined by Warlord Pyro squad 7413 | -4/Factory | Joined by Warlord Infantry squad 7436 | -4/Factory | Search patrols dispatched 7606 | -4/Factory | Discovered new exit (range 9) 7608 | -4/Factory | Identified exit to Upper Caves 7615 | -4/Factory | Entered Upper Caves 7635 | -4/Upper Caves | Lost 5 parts (2p2n1w) 7661 | -4/Upper Caves | Encountered a Warlord checkpoint 7919 | -4/Upper Caves | Learned location of Testing (-2) 7962 | -4/Upper Caves | Spotted B-86 Titan 7967 | -4/Upper Caves | Lost 6 parts (2n4u) 8016 | -4/Upper Caves | Discovered new exit (range 16) 8021 | -4/Upper Caves | Identified exit to Upper Caves 8028 | -4/Upper Caves | Entered another Upper Caves area 8030 | -4/Upper Caves | Discovered exit to Research (range 13) 8144 | -4/Upper Caves | Spotted B-86 Titan 8194 | -4/Upper Caves | Learned Research stockpile data 8233 | -4/Upper Caves | Build established: Mutant 8265 | -4/Upper Caves | Attracted the attention of an 0b10 checkpoint 8363 | -4/Upper Caves | Discovered new exit (range 7) 8365 | -4/Upper Caves | Core integrity fell below 50% 8366 | -4/Upper Caves | Identified exit to Zhirov 8366 | -4/Upper Caves | Entered Zhirov 8366 | -4/Zhirov | Discovered new exit (range 3) 8368 | -4/Zhirov | Identified exit to Proximity Caves 8376 | -4/Zhirov | Met Zhirov 8386 | -4/Zhirov | Learned location of Quarantine (-3) 8386 | -4/Zhirov | Learned location of Command (-1) 8396 | -4/Zhirov | Lost 4 parts (2n2u) 8397 | -4/Zhirov | Zhirov requested help retrieving the SGEMP Prototype 8456 | -4/Zhirov | Found Alien Artifact 8457 | -4/Zhirov | Identified Integrated Reactor 8457 | -4/Zhirov | Installed Integrated Reactor, increased core energy generation (+10) 8463 | -4/Zhirov | Found Alien Artifact 8463 | -4/Zhirov | Identified Transdimensional Reconstructor 8463 | -4/Zhirov | Warped through subspace 8493 | -4/Zhirov | Entered Proximity Caves 8689 | -3/Proximity Caves | Spotted B-86 Titan 8746 | -3/Proximity Caves | Discovered exit to Research (range 10) 8752 | -3/Proximity Caves | Entered Research 8752 | -3/Research | Evolved 2 slots: Power x1, Utility x1 8965 | -3/Research | Identified exit to Armory 8965 | -3/Research | Identified exit to Quarantine 9551 | -3/Research | Discovered new exit (range 21) 9562 | -3/Research | Joined by Warlord Pyro squad 9701 | -3/Research | Joined by Warlord Pyro squad 9808 | -3/Research | Build established: Scout 9932 | -3/Research | Lost 4 allies 9985 | -3/Research | Entered Quarantine 9990 | -3/Quarantine | Central database locked down 10417 | -3/Quarantine | Build established: Scientist-Scout 10610 | -3/Quarantine | Crushed by falling debris 10611 | -3/Quarantine | System corruption reached 10% 10611 | -3/Quarantine | Crushed by falling debris 10636 | -3/Quarantine | Found Alien Slashing Weapon 10636 | -3/Quarantine | Identified Sigix Broadsword 10642 | -3/Quarantine | Lost 5 parts (1p4u) 10680 | -3/Quarantine | Scanned by Researcher 10698 | -3/Quarantine | Found Alien Reactor 10698 | -3/Quarantine | Identified Matter Drive 10708 | -3/Quarantine | Found Alien Energy Cannon 10708 | -3/Quarantine | Identified Core Cannon 10729 | -3/Quarantine | Discovered new exit (range 6) 10730 | -3/Quarantine | Identified exit to Research 10760 | -3/Quarantine | Crushed by falling debris 10763 | -3/Quarantine | Crushed by falling debris 10764 | -3/Quarantine | System corruption reached 30% 10794 | -3/Quarantine | Lost 5 parts (1p4u) 10846 | -3/Quarantine | Spotted Fortress 10910 | -3/Quarantine | Core integrity fell below 50% 10924 | -3/Quarantine | Cryocooling Duct disabled 10939 | -3/Quarantine | Ambient heat levels rising (+20) 10939 | -3/Quarantine | Non-combat units ordered to evacuate 11182 | -3/Quarantine | Core integrity fell below 20% 11225 | -3/Quarantine | Discovered new exit (range 6) 11225 | -3/Quarantine | Discovered new exit (range 6) 11230 | -3/Quarantine | Entered Section 7 11232 | -3/Section 7 | Lost 4 parts (1p2u1w) 11283 | -3/Section 7 | Found Alien Artifact 11283 | -3/Section 7 | Identified Integrated Mediator 11283 | -3/Section 7 | Installed Integrated Mediator, increased core attachment efficiency 11457 | -3/Section 7 | Build established: Scavenger-Mutant 11597 | -3/Section 7 | Garrison activated, responded to threat 11711 | -3/Section 7 | Local machine network offline 11796 | -3/Section 7 | Crushed by falling debris 11798 | -3/Section 7 | Crushed by falling debris 11821 | -3/Section 7 | Crushed by falling debris 11852 | -3/Section 7 | Lost 7 parts (2p5u) 11898 | -3/Section 7 | Discovered exit to Research (range 12) 11901 | -3/Section 7 | Spotted B-86 Titan 11922 | -3/Section 7 | Destroyed B-86 Titan 11961 | -3/Section 7 | Spotted S7 Guard 11967 | -3/Section 7 | Found Alien Artifact 11967 | -3/Section 7 | Identified Core Physics Calibrator 11991 | -3/Section 7 | Destroyed S7 Guard 11997 | -3/Section 7 | Found Prototype Protection 11997 | -3/Section 7 | Identified Hvy. Regenerative Plating 12053 | -3/Section 7 | Lost 4 parts (1p1n1u1w) 12098 | -3/Section 7 | Scanned by Researcher 12099 | -3/Section 7 | Intercept squad dispatched 12102 | -3/Section 7 | Spotted Tracker 12104 | -3/Section 7 | Destroyed by G-67 Veteran with Field Laser Last Messages --------------- 12097_ K-01 Serf collects debris. 12098_ Held in stasis. 12098_ C-55 Analyst is analyzing... 12098_ ALERT: Modified LRC-V3 signature confirmed. 12099_ The unstable cave ceiling collapses. 12099_ ALERT: LRC-V3 signature pinpointed, intercept squad dispatched. 12100_ K-01 Serf collects debris. 12100_ U-05 Engineer lays Concrete. Tracker: "THREAT CONFIRMED. DEPLOY COMBAT PROGRAMMER." 12102_ U-05 Engineer lays Concrete. 12103_ The unstable cave ceiling collapses. 12103_ Cmb. Antigrav System+ temporarily disabled. 12103_ K-01 Serf collects debris. 12103_ U-05 Engineer lays Concrete. 12104_ System corrupted: Heat flow error (+201). 12104_ Held in stasis. 12104_ C-55 Analyst is analyzing... 12104_ R-10 Processor collects Unknown Flight Unit. 12104_ K-01 Serf collects debris. 12104_ Graviton Reactor destroyed. Map ----- +----------------------------------------------------+ | #?????????????????????###????????????????????????? | | #?????????????????????# #????????????????????????? | | #?????????????????????# #????????????????????????? | | ??????????????????????# #????????????????????????? | | ??????????????????????# #????????????????????????? | | ??????????????????????###????????????????????????? | | ??????????????????????# #????????????????????????? | | ??????????????????????###????????????????????????? | | ??????????????????????# #????????????????????????? | | ??????????????????????# #????????????????????????? | | #?????????????????????# #?###????????????????????? | | #?????????????????????# #? ??????????????????? | | ??????????????????????# #? ??????????????????? | | ??????????????????????# ## ??????????????????? | | ??????????????????????# ## ??????????????????? | | ??????????????????????# ## #??????????????????? | | ??????????????????????# ## #??????????????????? | | ??????????????????????# ## ^ #??????????????????? | | ??????????????????????# ## #??????????????????? | | ??????????????????????# ## #??????????????????? | | ????????????????########## #??????????????????? | | ""?????########## s # #??????????????????? | | ""?????# s # #??????????????????? | | ???"""?# # k # #??????????????????? | | ????T"?# # #??????????????????? | | ???"""?# # @ #??????????????????? | | ???????# u# #??????????????????? | | ??????## % / # #??????????????????? | | ??????## c R # #??????????????????? | | ??????## % k # u #??????????????????? | | ???????# s ## ### #??????????????????? | | ##############g ### #??????????????????? | | #??????????????????? | | #??????????????????? | | """ u #??????????????????? | | ""T"" c """"""" #??????????????????? | | # ##### "" "" """"""" #??????????????????? | | ??????# """"""" #??????????????????? | | ??????# #??????????????????? | | "?????# """"""" #??????????????????? | | "?????# """"""" #??????????????????? | | "?????# """"""" #??????????????????? | | ??????# #??????????????????? | | ??????#% """"""" " #??????????????????? | | ??????# """"""" #??????????????????? | | ####### """""" #??????????????????? | | #??????????????????? | | #??????????????????? | | % #??????????????????? | | ##?????????????????? | +----------------------------------------------------+ Best States ------------- Heat Dissipation 134 Energy Generation 74 Energy Capacity 1105 Matter Stores 374 Matter Capacity 700 Sight Range 22 Robot Scan Range 16 Terrain Scan Range 16 Terrain Scan Density 210 ECM Strength 2 Jamming Range 16 Cloak Strength 2 Additional Mass Support 12 Armor Coverage 600 Core Shielding 20 Utility Shielding 66 Weapon Shielding 90 Phase Shifting 10 Evasion (%) 69 Targeting Accuracy 6 Target Analysis 12 Core Analysis 6 Recoil Reduction 5 Defensive Hacking 14 Authchip Count 1 Item Schematics ----------------- Imp. Titanium Leg | -8/Materials | Scanalyzed Imp. Heat Sink | -6/Factory | Scanalyzed Assault Drone Bay | -4/Zhirov | Free Exp. Heat Sink | -4/Zhirov | Free Exp. Optical Array | -4/Zhirov | Free Imp. Arc Thrower | -4/Zhirov | Free Adv. Kinecellerator | -3/Quarantine | Archive Prc. Phase Gun | -3/Quarantine | Archive Centrium Heavy Treads | -3/Quarantine | Archive Robot Schematics ------------------ R-06 Scavenger | -3/Quarantine | Archive M-36 Artificer | -3/Quarantine | Archive Fabricated ------------ Nothing Repaired ---------- Nothing Studied --------- Hvy. EM Pulse Gun | -8/Materials | Hacked Katana | -8/Materials | Hacked Imp. Titanium Leg | -7/Factory | Hacked Antigrav Array | -3/Research | Hacked Gravmag Array | -3/Research | Hacked Cmb. Antigrav System | -3/Quarantine | Hacked Lgt. Antimatter Reactor | -3/Quarantine | Hacked Alien Tech Used ----------------- Core Expander Integrated Reactor Transdimensional Reconstructor Sigix Broadsword Matter Drive Core Cannon Integrated Mediator Core Physics Calibrator Achievements -------------- Ew, Corruption Hard Hitter I Like You, Cogmind Ooh, Shiny! Sniper Suspicious The Science Guy This Is My Hole Challenges ------------ None Game ------ Seed StasisMagneticShockpuncher Manual? 0 Play Time 03:46:07 Cumulative 96.8 hours Start 2025.10.25 @ 09:22:42 End 2025.10.25 @ 13:21:35 Sessions 1 Manual Loads 0 Difficulty Rogue Special Mode None Game No. 81 Rogue 81 Adventurer 0 Explorer 0 Win Type - Total 0 Types 0/0/0/0/0/0/0/0/0/0 Lore% 42 Gallery% 52 Achievement% 37 Wizard Run 0 Options --------- Layout 0 ASCII 0 Keyboard 0 Movement Mouse Keybinds 0 Fullscreen 1 Font 36/Smallcaps Map View 76x50 Zoom Use 0% Tactical HUD 1 Map Filters NONE Filters NONE Steam 1 RUN: 2cb3a3a1-f811-4a31-8340-b2ab2e941c62